bitfinex/quotes_SOLUSD_20251013
["timestamp","ask_amount","ask_price","bid_price","bid_amount"]
[1760329380578,0.10418977,194.82,194.8,9.64499217]
[1760329380775,0.09851019,194.83,194.81,4.51152195]
[1760329381089,0.09851019,194.83,194.82,3.80152195]
[1760329381287,0.09851019,194.83,194.82,0.71]
[1760329381472,0.09851019,194.83,194.82,4.51152195]
[1760329381666,0.09851019,194.83,194.8,5.13347022]
[1760329382276,0.67,194.82,194.78,0.1]
[1760329382480,20.8,194.79,194.78,0.1]
[1760329383690,20.8,194.82,194.78,5.94397111]
[1760329383870,0.09851019,194.83,194.79,0.71]
[1760329384071,20.89851019,194.83,194.8,0.71]
[1760329384401,20.89851019,194.83,194.81,5.13320671]
[1760329386504,20.8,194.79,194.78,0.1]
[1760329387393,20.90315687,194.79,194.78,0.1]
[1760329388397,0.10315687,194.79,194.78,5.94399733]
[1760329390089,0.10315687,194.79,194.78,0.1]
[1760329390090,21.57315687,194.79,194.78,0.1]
[1760329390412,20.90315687,194.79,194.78,0.1]
[1760329392783,20.90315687,194.79,194.78,5.23399733]
[1760329392987,0.10315687,194.79,194.78,5.94399733]
[1760329397509,1e-08,194.79,194.78,5.94399733]
[1760329397688,0.10868443,194.81,194.78,15.00012274]
[1760329397888,0.10673907,194.82,194.8,9.05612541]
[1760329398085,0.10673907,194.82,194.79,0.66]
[1760329398292,0.10673907,194.82,194.78,5.23399733]
[1760329398706,0.10673907,194.82,194.79,0.66]
[1760329399007,0.10673907,194.82,194.8,5.79347022]
[1760329399209,20.90673907,194.82,194.8,5.79347022]
[1760329399415,0.10673907,194.82,194.81,0.66]
[1760329400510,0.10673907,194.82,194.8,5.13347022]
[1760329400910,0.10673907,194.82,194.81,0.66]
[1760329401294,0.10673907,194.82,194.81,5.79320671]
[1760329402615,0.10673907,194.82,194.81,0.66]
[1760329403117,0.10673907,194.82,194.79,18.62806817]
[1760329403287,0.10673907,194.82,194.8,0.66]
[1760329403615,0.10673907,194.82,194.81,0.66]
[1760329404502,0.10673907,194.82,194.81,5.79320671]
[1760329405441,0.10673907,194.82,194.81,5.13320671]
[1760329405719,0.10673907,194.82,194.78,0.1]
[1760329405720,21.55673907,194.82,194.78,0.1]
[1760329405910,21.55673907,194.82,194.78,5.23390272]
[1760329406308,20.90673907,194.82,194.78,5.23390272]
[1760329406616,21.45,194.82,194.78,5.23390272]
[1760329406920,0.65,194.81,194.78,5.23390272]
[1760329407288,0.11106397,194.79,194.78,5.23390272]
[1760329407894,0.11106397,194.79,194.78,14.95002813]
[1760329408613,0.10757399,194.82,194.78,27.78502145]
[1760329408808,0.10757399,194.82,194.81,9.05612541]
[1760329409229,0.10757399,194.82,194.81,9.71612541]
[1760329409826,0.10757399,194.82,194.81,14.84933212]
[1760329411227,0.10757399,194.82,194.81,5.13320671]
[1760329411716,0.10757399,194.82,194.79,17.96806817]
[1760329412026,0.10757399,194.82,194.79,18.62806817]
[1760329412224,0.10757399,194.82,194.8,0.66]
[1760329412946,0.10757399,194.82,194.81,5.13320671]
[1760329413236,0.25909691,194.85,194.81,5.13320671]
[1760329413529,0.25909691,194.85,194.81,17.96622349]
[1760329414151,20.9103796,194.86,194.78,0.1]
[1760329414325,20.9103796,194.86,194.75,10.22391953]
[1760329414326,20.8,194.78,194.75,10.22391953]
[1760329415228,21.18,194.78,194.75,10.22391953]
[1760329415619,20.8,194.78,194.75,15.35866634]
[1760329416235,0.38,194.77,194.75,10.22391953]
[1760329416416,10.87647521,194.77,194.75,9.84391953]
[1760329416620,31.67647521,194.76,194.75,9.84391953]
[1760329416922,36.81099975,194.76,194.75,9.84391953]
[1760329419040,31.67647521,194.76,194.75,9.84391953]
[1760329421028,20.11037959,194.86,194.75,9.84391953]
[1760329421228,20.8,194.76,194.75,9.84391953]
[1760329422226,20.8,194.77,194.75,9.84391953]
[1760329422641,20.8,194.77,194.76,0.66]
[1760329423339,20.8,194.77,194.75,14.97863018]
[1760329425225,10.87647521,194.76,194.75,9.84391953]
[1760329425926,31.67647521,194.76,194.75,9.84391953]
[1760329426646,17.96806817,194.79,194.72,0.1]
[1760329426647,31.67647521,194.73,194.72,0.1]
[1760329427234,36.91656685,194.73,194.72,0.1]
[1760329428849,0.10477608,194.73,194.72,0.1]
[1760329429040,0.10477608,194.73,194.72,0.77]
[1760329429229,20.90477608,194.73,194.72,0.1]
[1760329430046,0.10477608,194.73,194.72,0.77]
[1760329430554,20.90477608,194.73,194.72,0.1]
[1760329431346,10.98125129,194.73,194.72,0.1]
[1760329431729,16.11656685,194.73,194.72,0.1]
[1760329432846,10.98125129,194.73,194.72,0.1]
[1760329433044,16.11656685,194.73,194.72,0.1]
[1760329433626,31.67647521,194.69,194.68,65.0]
[1760329434253,20.8,194.69,194.68,65.67]
[1760329435646,20.8,194.69,194.68,65.0]
[1760329436336,20.8,194.69,194.68,65.67]
[1760329437854,20.8,194.69,194.68,65.0]
[1760329438754,36.81284585,194.69,194.68,65.0]
[1760329439238,31.67647521,194.69,194.68,65.67]
[1760329439440,31.67647521,194.69,194.68,65.0]
[1760329439943,10.87647521,194.71,194.68,65.67]
[1760329440256,0.10477608,194.73,194.69,0.67]
[1760329440561,31.67647521,194.72,194.69,0.67]
[1760329440759,31.67647521,194.72,194.68,65.0]
[1760329440957,10.87647521,194.69,194.68,65.0]
[1760329443337,2.6849696,194.7,194.68,65.67]
[1760329443546,2.6849696,194.7,194.69,0.67]
[1760329443754,20.8,194.72,194.69,0.67]
[1760329443960,0.10477608,194.73,194.69,0.67]
[1760329444350,20.8,194.72,194.69,0.67]
[1760329444550,0.10477608,194.73,194.69,0.67]
[1760329445557,0.10477608,194.73,194.7,17.9763739]
[1760329445740,0.10477608,194.73,194.71,0.67]
[1760329446759,20.8,194.77,194.7,5.13610683]
[1760329446950,20.8,194.73,194.72,0.67]
[1760329447138,0.1018952,194.72,194.68,65.0]
[1760329447850,20.8,194.69,194.68,65.67]
[1760329450051,20.8,194.69,194.68,65.0]
[1760329450247,31.67647521,194.69,194.68,65.0]
[1760329451847,31.67647521,194.69,194.68,65.67]
[1760329451848,20.8,194.69,194.68,65.67]
[1760329452863,10.97837041,194.72,194.68,65.67]
[1760329452864,0.1018952,194.72,194.68,70.80663447]
[1760329453069,20.8,194.71,194.69,0.67]
[1760329453362,0.1018952,194.72,194.7,0.67]
[1760329453563,20.8,194.71,194.7,0.67]
[1760329454365,20.8,194.71,194.68,65.0]
[1760329454554,20.8,194.71,194.69,0.68]
[1760329454763,20.8,194.71,194.7,0.68]
[1760329458547,20.8,194.71,194.7,5.81610683]
[1760329458847,10.87647521,194.7,194.68,65.0]
[1760329459379,0.1018952,194.72,194.68,65.0]
[1760329459380,31.67647521,194.69,194.68,65.0]
[1760329459554,20.8,194.69,194.68,65.68]
[1760329459868,0.1018952,194.72,194.68,70.81663447]
[1760329460078,20.9018952,194.72,194.69,0.68]
[1760329460253,20.9018952,194.72,194.7,0.68]
[1760329460453,20.9018952,194.72,194.71,0.68]
[1760329460869,20.8,194.71,194.68,70.13663447]
[1760329461077,20.8,194.71,194.69,0.68]
[1760329462170,20.8,194.71,194.7,0.68]
[1760329462676,20.8,194.71,194.69,5.13633234]
[1760329462880,20.8,194.71,194.69,5.81633234]
[1760329464456,0.1018952,194.72,194.68,65.0]
[1760329464660,20.8,194.69,194.68,65.0]
[1760329465768,20.8,194.69,194.68,65.68]
[1760329465951,20.8,194.69,194.68,70.81663447]
[1760329466348,20.8,194.69,194.68,65.0]
[1760329467161,20.90327166,194.69,194.68,65.0]
[1760329467772,0.10327166,194.69,194.68,65.68]
[1760329467964,0.10327166,194.69,194.68,70.81663447]
[1760329468366,0.1036592,194.7,194.68,70.81663447]
[1760329468677,0.1036592,194.7,194.69,0.68]
[1760329469566,0.1036592,194.7,194.69,5.81637064]
[1760329473381,0.10269381,194.71,194.69,11.90126392]
[1760329473680,0.10667781,194.75,194.7,6.76489328]
[1760329473859,0.10667781,194.75,194.73,6.08489328]
[1760329474190,0.10667781,194.75,194.7,0.68]
[1760329474191,0.10942329,194.78,194.74,6.08489328]
[1760329474382,0.10942329,194.78,194.75,5.81478818]
[1760329474868,0.10942329,194.78,194.76,0.68]
[1760329476671,0.10942329,194.78,194.76,5.81452454]
[1760329479888,0.10942329,194.78,194.74,0.68]
[1760329480099,0.10942329,194.78,194.75,0.68]
[1760329480383,0.10942329,194.78,194.76,0.68]
[1760329480891,0.10942329,194.78,194.76,5.81452454]
[1760329485975,1e-08,194.78,194.76,5.81452454]
[1760329486288,1e-08,194.78,194.77,6.76489328]
[1760329486691,0.43,194.87,194.77,6.76489328]
[1760329486692,21.23,194.87,194.77,6.08489328]
[1760329486993,21.23,194.87,194.78,0.68]
[1760329487192,0.11137985,194.8,194.79,17.96806817]
[1760329487491,0.11137985,194.8,194.79,18.64806817]
[1760329492791,0.10192324,194.83,194.8,3.79835719]
[1760329492977,0.10192324,194.83,194.8,4.47835719]
[1760329493171,0.10192324,194.83,194.79,21.76642536]
[1760329493378,0.10192324,194.83,194.81,0.68]
[1760329493895,0.10192324,194.83,194.82,5.13294322]
[1760329494286,0.10192324,194.83,194.82,5.81294322]
[1760329497284,0.10192324,194.83,194.82,5.13294322]
[1760329499492,0.10192324,194.83,194.82,0.68]
[1760329499801,0.1094416,194.84,194.82,0.68]
[1760329500909,0.1094416,194.84,194.83,0.68]
[1760329501587,0.1094416,194.84,194.83,5.81267977]
[1760329505298,0.1094416,194.84,194.83,5.13267977]
[1760329506502,0.1094416,194.84,194.81,17.96622349]
[1760329506704,0.43,194.87,194.81,18.64622349]
[1760329507288,0.10991966,194.82,194.81,18.64622349]
[1760329507902,0.10919129,194.83,194.81,18.64622349]
[1760329508106,0.10474101,194.84,194.81,18.64622349]
[1760329508107,0.10474101,194.84,194.82,0.68]
[1760329508412,0.09879886,194.86,194.82,0.68]
[1760329508606,1e-08,194.88,194.85,3.79835719]
[1760329508779,1e-08,194.88,194.86,0.68]
[1760329509197,0.09633542,194.91,194.86,0.68]
[1760329509986,0.09633542,194.91,194.87,17.96069174]
[1760329510215,0.09633542,194.91,194.88,0.68]
[1760329510518,0.09633542,194.91,194.89,0.68]
[1760329511689,0.09633542,194.91,194.89,5.81109959]
[1760329513493,0.09633542,194.91,194.89,5.13109959]
[1760329513693,0.09633542,194.91,194.89,5.80109959]
[1760329516196,1e-08,194.91,194.9,0.67]
[1760329517823,1e-08,194.91,194.9,5.80083632]
[1760329519139,1e-08,194.91,194.9,5.13083632]
[1760329519420,1e-08,194.91,194.9,5.80083632]
[1760329521524,1e-08,194.91,194.9,5.13083632]
[1760329522019,1e-08,194.91,194.9,5.80083632]
[1760329523340,0.2,194.95,194.9,44.28210876]
[1760329523507,1e-08,194.95,194.91,11.54647521]
[1760329524020,1e-08,194.95,194.93,10.87647521]
[1760329524321,1e-08,194.95,194.93,14.6748324]
[1760329524524,1e-08,194.95,194.94,0.67]
[1760329524718,1e-08,194.95,194.94,4.46835719]
[1760329525621,1e-08,194.95,194.94,9.59814071]
[1760329527626,1e-08,194.95,194.94,5.79978352]
[1760329528323,1e-08,194.97,194.94,18.62424232]
[1760329528528,1e-08,194.97,194.95,0.67]
[1760329528827,1e-08,194.97,194.95,4.46835719]
[1760329529024,1e-08,194.97,194.96,0.67]
[1760329530014,1e-08,194.97,194.96,5.79925728]
[1760329530527,1e-08,194.97,194.96,5.12925728]
[1760329531034,1e-08,194.97,194.96,5.79925728]
[1760329532011,1e-08,195.0,194.96,33.29723288]
[1760329532210,0.43,195.09,194.99,3.79835719]
[1760329532509,0.43,195.09,195.0,0.67]
[1760329532830,0.43,195.09,195.0,4.46835719]
[1760329533061,0.43,195.09,195.01,0.67]
[1760329533219,0.43,195.07,195.01,0.67]
[1760329533743,0.43,195.09,195.02,0.67]
[1760329534110,0.43,195.09,195.02,5.79767921]
[1760329534324,0.43,195.09,195.02,9.5960364]
[1760329534521,0.43,195.09,195.02,5.79767921]
[1760329534720,0.43,195.08,195.02,5.79767921]
[1760329535030,0.43,195.08,195.02,5.12767921]
[1760329535733,0.43,195.08,195.02,5.79767921]
[1760329537145,0.73869309,195.03,194.95,20.8]
[1760329537433,0.43,195.02,194.92,20.7708848]
[1760329537624,0.43,195.01,194.93,0.67]
[1760329537932,0.43,195.01,194.93,4.46835719]
[1760329538137,0.43,195.01,194.94,4.46835719]
[1760329538321,0.43,195.01,194.95,18.62332135]
[1760329538730,0.30869309,195.03,194.96,0.67]
[1760329539120,0.73869309,195.03,194.96,0.67]
[1760329539838,0.30869309,195.03,194.96,0.67]
[1760329540420,0.30869309,195.03,194.97,17.95147971]
[1760329541229,0.30869309,195.03,194.97,18.62147971]
[1760329543431,0.30869309,195.03,194.97,17.95147971]
[1760329543731,0.30869309,195.03,194.98,0.72]
[1760329544320,0.30869309,195.03,194.99,0.66]
[1760329544522,0.30869309,195.03,195.0,5.12820512]
[1760329544722,0.43,195.02,195.0,5.12820512]
[1760329544931,0.43,195.01,195.0,5.12820512]
[1760329545337,0.73869309,195.03,195.0,5.12820512]
[1760329546021,0.73869309,195.03,194.97,5.1289942]
[1760329546022,0.43,195.02,194.97,5.1289942]
[1760329546226,0.43,195.01,194.97,5.1289942]
[1760329546740,0.43,195.01,194.96,12.82262853]
[1760329547330,0.10887345,194.97,194.96,12.82262853]
[1760329550542,0.10887345,194.97,194.93,25.64896422]
[1760329550729,0.10887345,194.97,194.96,0.66]
[1760329551942,0.09536032,194.99,194.96,3.08734199]
[1760329552142,0.09420026,195.04,194.99,10.87647521]
[1760329552342,1e-08,195.03,195.02,13.3038172]
[1760329552547,1e-08,195.03,195.02,13.9638172]
[1760329552741,1e-08,195.04,195.03,10.87647521]
[1760329552936,1e-08,195.05,195.03,13.9638172]
[1760329553249,1e-08,195.05,195.04,0.66]
[1760329555450,1e-08,195.05,195.04,5.7871534]
[1760329557150,1e-08,195.05,195.04,8.21449539]
[1760329557733,1e-08,195.05,195.04,5.7871534]
[1760329558256,1e-08,195.05,195.04,8.21449539]
[1760329558456,1e-08,195.05,195.04,5.7871534]
[1760329558641,1e-08,195.05,195.04,8.21449539]
[1760329559231,1e-08,195.05,195.04,5.1271534]
[1760329559441,0.43000001,195.05,194.99,17.94904143]
[1760329559744,21.23,195.04,194.9,2.05639667]
[1760329559950,32.10647521,195.03,194.91,0.66]
[1760329560161,0.43,195.02,194.91,0.66]
[1760329560372,0.43,195.01,194.91,3.08734199]
[1760329560548,0.43,195.01,194.94,17.95424232]
[1760329560869,10.87647522,195.05,194.99,2.42734199]
[1760329560870,1e-08,195.05,194.99,2.42734199]
[1760329561046,1e-08,195.05,195.0,3.08734199]
[1760329561247,1e-08,195.05,195.01,2.42734199]
[1760329561448,1e-08,195.05,195.01,3.08734199]
[1760329561647,1e-08,195.05,195.01,2.42734199]
[1760329561852,1e-08,195.05,195.03,2.42734199]
[1760329562067,1e-08,195.05,195.03,10.87647521]
[1760329562250,1e-08,195.05,195.04,3.08734199]
[1760329562856,1e-08,195.05,195.04,8.21449539]
[1760329563653,1e-08,195.05,195.04,5.7871534]
[1760329566781,21.0,195.11,195.04,18.60503691]
[1760329567271,0.10734036,195.08,195.07,2.42734199]
[1760329567469,0.2936863,195.11,195.07,3.08734199]
[1760329567661,0.2936863,195.11,195.09,2.42734199]
[1760329567860,0.2936863,195.11,195.1,2.42734199]
[1760329568072,0.2936863,195.11,195.1,3.08734199]
[1760329568282,1e-08,195.11,195.1,3.08734199]
[1760329568458,1e-08,195.12,195.1,3.08734199]
[1760329568657,1e-08,195.12,195.11,8.21265591]
[1760329569559,1e-08,195.12,195.11,5.12531392]
[1760329571279,1e-08,195.12,195.1,5.12557662]
[1760329571957,1e-08,195.12,195.1,5.78557662]
[1760329574459,1e-08,195.12,195.09,12.81434572]
[1760329574669,1e-08,195.12,195.09,13.50434572]
[1760329575365,0.43,195.11,195.07,17.94227712]
[1760329575566,0.43,195.1,195.07,5.12636489]
[1760329575891,0.43,195.09,195.07,5.12636489]
[1760329576692,0.43,195.09,195.04,12.81738738]
[1760329578783,0.43,195.09,195.04,18.63454078]
[1760329579362,20.8,195.1,195.04,17.94454078]
[1760329579562,0.43,195.09,195.04,17.94454078]
[1760329579776,0.43,195.08,195.04,17.94454078]
[1760329580180,20.8,195.11,195.05,0.69]
[1760329580486,21.23,195.11,195.05,0.69]
[1760329580998,21.23,195.11,195.06,5.1266277]
[1760329581175,0.43,195.1,195.06,5.1266277]
[1760329581978,1e-08,195.12,195.07,0.69]
[1760329582370,0.43000001,195.12,195.07,0.69]
[1760329582881,0.43000001,195.12,195.06,17.94319696]
[1760329583487,0.43000001,195.12,195.02,43.58400534]
[1760329583686,21.23000001,195.12,195.06,0.69]
[1760329584073,21.23000001,195.12,195.05,0.69]
[1760329584672,1e-08,195.12,195.05,0.69]
[1760329585594,1e-08,195.12,195.06,17.94319696]
[1760329586084,1e-08,195.12,195.07,0.69]
[1760329586474,1e-08,195.12,195.08,0.69]
[1760329586674,20.8,195.14,195.08,0.69]
[1760329587187,20.8,195.14,195.09,5.12583935]
[1760329587388,0.09652528,195.1,195.09,5.12583935]
[1760329588786,0.10798901,195.11,195.09,5.81583935]
[1760329588993,0.10586524,195.14,195.1,3.11734199]
[1760329589306,0.10586524,195.14,195.12,5.12505125]
[1760329589498,0.10586524,195.14,195.12,7.55239324]
[1760329589686,0.10586524,195.14,195.13,0.69]
[1760329590411,0.10586524,195.14,195.12,5.12505125]
[1760329590577,0.10586524,195.14,195.13,0.69]
[1760329591710,0.53586524,195.14,195.13,5.1247886]
[1760329592878,0.53586524,195.14,195.1,12.81377575]
[1760329593204,21.23,195.13,195.04,5.1271534]
[1760329593511,20.8,195.08,195.04,5.1271534]
[1760329593677,0.43,195.07,195.04,5.1271534]
[1760329594188,0.43,195.06,195.04,5.1271534]
[1760329594697,0.43,195.06,195.01,17.94734534]
[1760329594898,21.23,195.08,195.01,18.63734534]
[1760329596300,20.8,195.06,195.01,18.63734534]
[1760329596597,20.8,195.06,194.96,36.52149381]
[1760329596598,20.8,195.06,195.03,17.94595702]
[1760329596902,0.43,195.1,195.04,0.69]
[1760329597198,21.23,195.09,195.01,5.12769044]
[1760329597502,0.43,195.08,195.01,5.12769044]
[1760329597682,0.43,195.07,195.01,5.12769044]
[1760329597887,21.23,195.07,195.01,5.12769044]
[1760329598288,20.8,195.05,195.01,5.12769044]
[1760329600396,20.8,195.03,194.92,5.13030987]
[1760329600705,20.8,195.03,194.97,0.69]
[1760329601205,0.43,195.04,194.97,0.69]
[1760329601704,20.8,195.03,194.97,3.11734199]
[1760329602002,23.47969267,195.06,194.98,0.69]
[1760329602503,23.47969267,195.06,194.99,17.94963843]
[1760329602687,2.67969267,195.06,195.0,0.69]
[1760329602893,20.8,195.07,195.0,0.69]
[1760329603310,2.679467,195.07,195.01,2.42734199]
[1760329603483,0.43,195.11,195.02,0.67]
[1760329603684,2.67911117,195.1,195.02,0.67]
[1760329604514,2.67911117,195.1,195.03,17.94595702]
[1760329604696,2.67911117,195.1,195.03,18.62595702]
[1760329605303,2.67911117,195.1,195.04,3.10734199]
[1760329605618,20.8,195.12,195.05,0.68]
[1760329605991,20.8,195.11,195.03,43.58303849]
[1760329606302,0.43,195.1,195.03,43.58303849]
[1760329606500,20.8,195.11,195.05,17.94411689]
[1760329606698,21.23,195.12,195.05,17.94411689]
[1760329607289,0.10312458,195.06,195.05,17.94411689]
[1760329607513,0.10312458,195.06,195.05,18.62411689]
[1760329612195,0.11193014,195.07,195.05,18.62411689]
[1760329612394,0.11193014,195.07,195.06,0.68]
[1760329613011,0.1061903,195.09,195.06,4.46850768]
[1760329613216,0.1061903,195.09,195.07,4.46850768]
[1760329613604,0.1061903,195.09,195.08,0.68]
[1760329613795,0.09306417,195.13,195.08,0.68]
[1760329613796,0.09306417,195.13,195.08,9.59460979]
[1760329614021,1e-08,195.14,195.1,3.78850768]
[1760329614208,1e-08,195.14,195.13,3.78850768]
[1760329614610,1e-08,195.14,195.13,4.46850768]
[1760329614931,1e-08,195.14,195.13,0.68]
[1760329616034,1e-08,195.14,195.13,5.8047886]
[1760329617907,1e-08,195.14,195.13,9.59329628]
[1760329618429,1e-08,195.14,195.13,5.8047886]
[1760329619226,1e-08,195.14,195.13,5.1247886]
[1760329620140,1e-08,195.14,195.13,5.8047886]
[1760329620635,1e-08,195.14,195.11,13.49298458]
[1760329620816,1e-08,195.14,195.12,0.68]
[1760329621728,1e-08,195.14,195.09,5.12582312]
[1760329621729,0.43,195.13,195.09,5.12582312]
[1760329622031,0.43,195.12,195.09,5.12582312]
[1760329622231,1e-08,195.14,195.1,0.68]
[1760329622441,1e-08,195.14,195.11,0.68]
[1760329622633,1e-08,195.14,195.12,5.12505125]
[1760329623829,1e-08,195.14,195.1,18.61951818]
[1760329624218,1e-08,195.14,195.11,0.68]
[1760329624624,1e-08,195.14,195.12,0.68]
[1760329625336,0.43,195.13,195.08,5.12610211]
[1760329625531,0.43,195.12,195.08,5.12610211]
[1760329625728,20.8,195.1,194.99,25.6423017]
[1760329625923,20.8,195.1,194.87,0.2]
[1760329625924,21.23,195.09,195.0,5.80820512]
[1760329626125,20.8,195.09,195.01,0.68]
[1760329626836,20.8,195.1,195.01,0.68]
[1760329627238,0.10278814,195.02,195.01,0.68]
[1760329627859,0.10278814,195.02,195.01,5.12794215]
[1760329629249,0.53278814,195.02,194.94,5.12978352]
[1760329629449,0.53278814,195.02,194.82,4.92]
[1760329629450,20.8,194.99,194.92,5.13011934]
[1760329629652,0.43,194.98,194.92,5.13011934]
[1760329629856,0.43,194.98,194.9,18.63792713]
[1760329630833,20.8,194.98,194.91,0.68]
[1760329632033,20.8,194.98,194.92,17.95608454]
[1760329632232,20.8,194.98,194.92,18.63608454]
[1760329633655,11.30647521,195.01,194.92,12.82577467]
[1760329633656,0.43,195.01,194.92,12.82577467]
[1760329633864,21.23,195.01,194.93,0.68]
[1760329634365,20.8,195.0,194.93,0.68]
[1760329635179,20.8,195.01,194.93,0.68]
[1760329635874,20.8,195.01,194.94,17.95424232]
[1760329636169,20.8,195.01,194.95,0.68]
[1760329636973,0.43,195.0,194.94,17.95424232]
[1760329637173,21.23,194.99,194.94,5.12978352]
[1760329637375,0.43,194.98,194.94,5.12978352]
[1760329637577,20.8,194.99,194.95,0.68]
[1760329637876,20.8,194.97,194.96,5.12925728]
[1760329638201,20.90278814,195.02,194.96,5.80925728]
[1760329638358,20.90278814,195.02,194.96,5.12925728]
[1760329638550,21.33278814,195.02,194.96,5.12925728]
[1760329638745,20.8,195.01,194.96,17.95240048]
[1760329639172,21.23,195.01,194.96,17.95240048]
[1760329640378,21.23,195.01,194.96,12.8231432]
[1760329641864,21.23,195.01,194.96,0.68]
[1760329642067,21.23,195.01,194.91,17.95700579]
[1760329642265,21.23,195.01,194.94,0.68]
[1760329643290,21.23,195.01,194.95,17.95332135]
[1760329643662,21.23,195.01,194.95,18.63332135]
[1760329643864,20.90278814,195.02,194.95,18.63332135]
[1760329644189,20.8,195.01,194.95,18.63332135]
[1760329647495,0.1125249,194.96,194.95,18.63332135]
[1760329651771,0.10801724,194.97,194.95,18.63332135]
[1760329652074,0.10818308,194.99,194.96,4.47279341]
[1760329652278,0.10818308,194.99,194.97,3.79279341]
[1760329652503,0.10818308,194.99,194.97,4.47279341]
[1760329652693,0.10818308,194.99,194.98,0.68]
[1760329653581,0.0986193,195.0,194.98,4.47279341]
[1760329653792,0.0986193,195.0,194.99,9.60126153]
[1760329655277,0.0986193,195.0,194.99,5.80846812]
[1760329655497,0.0986193,195.0,194.99,9.60126153]
[1760329655680,0.10639017,195.02,194.99,22.42243184]
[1760329655878,0.10639017,195.02,195.01,3.79279341]
[1760329656182,0.43,195.1,195.01,3.79279341]
[1760329656383,0.43,195.1,195.02,4.47279341]
[1760329656581,1e-08,195.04,195.02,4.47279341]
[1760329656891,1e-08,195.05,195.03,4.47279341]
[1760329657088,3.10843738,195.16,195.05,10.87647521]
[1760329657297,3.10843738,195.16,195.07,3.79279341]
[1760329657472,3.10843738,195.16,195.08,4.47279341]
[1760329657669,3.10843738,195.16,195.09,0.68]
[1760329657878,3.10843738,195.16,195.1,17.93951818]
[1760329658293,3.10843738,195.16,195.1,18.61951818]
[1760329659799,0.2,195.17,195.12,17.93767937]
[1760329659986,0.2,195.17,195.12,5.12505125]
[1760329659987,0.43,195.16,195.12,5.12505125]
[1760329660194,21.0,195.17,195.12,5.12505125]
[1760329660581,0.43,195.16,195.12,5.12505125]
[1760329661309,0.2,195.17,195.13,0.68]
[1760329661877,0.2,195.17,195.14,5.12452598]
[1760329666403,0.2,195.17,195.15,0.68]
[1760329666915,0.2,195.17,195.15,4.47279341]
[1760329667220,0.2,195.17,195.16,4.47279341]
[1760329667387,0.30404941,195.17,195.16,0.68]
[1760329667907,0.30404941,195.17,195.16,5.80400081]
[1760329668917,1e-08,195.18,195.16,9.59679422]
[1760329669218,1e-08,195.19,195.17,4.47279341]
[1760329669394,1e-08,195.19,195.18,3.79279341]
[1760329669593,1e-08,195.19,195.18,4.47279341]
[1760329670417,1e-08,195.19,195.18,9.59626917]
[1760329671519,0.10438248,195.24,195.19,3.79279341]
[1760329671711,0.10438248,195.24,195.21,3.79279341]
[1760329672024,1e-08,195.23,195.22,3.79279341]
[1760329672312,1e-08,195.23,195.22,8.91521939]
[1760329672512,1e-08,195.23,195.22,9.59521939]
[1760329673602,1e-08,195.23,195.22,8.22197519]
[1760329675101,1e-08,195.24,195.22,8.22197519]
[1760329675308,1e-08,195.25,195.23,13.97602442]
[1760329675611,1e-08,195.25,195.24,13.29602442]
[1760329675808,0.1,195.31,195.25,10.87647521]
[1760329676009,0.1,195.31,195.28,2.41954921]
[1760329676516,0.1,195.31,195.3,5.1203277]
[1760329676905,0.1,195.31,195.3,5.8003277]
[1760329682122,0.53,195.31,195.25,12.80359852]
[1760329682321,0.43,195.3,195.25,12.80359852]
[1760329682716,0.1,195.31,195.26,0.68]
[1760329682899,0.1,195.31,195.27,5.12111435]
[1760329683104,0.53,195.31,195.27,5.12111435]
[1760329683712,0.43,195.3,195.27,5.12111435]
[1760329684516,0.43,195.3,195.25,17.92523744]
[1760329684829,0.1,195.31,195.25,18.60523744]
[1760329687208,0.1,195.31,195.26,0.68]
[1760329687409,0.10780673,195.27,195.26,0.68]